[Event "Polish Youth Ekstraliga 2022"]
[Site "Lublin"]
[Date "2022.06.29"]
[Round "5.10"]
[White "Liskiewicz, Jakub"]
[Black "Grzebieniowski, Michal"]
[Result "1-0"]
[ECO "D31"]
[WhiteElo "1839"]
[BlackElo "1635"]
[Annotator "NA RC"]
[PlyCount "37"]
[EventDate "2022.06.24"]
[EventType "team-tourn"]
[EventCountry "POL"]
[SourceTitle "playchess.com"]
[Source "ChessBase"]
[SourceQuality "1"]
[TimeControl "40/5400+30:1800+30"]

1. d4 {[%emt 0:00:05]} d5 {[%emt 0:00:04]} 2. c4 {[%emt 0:00:07]} e6 {[%emt 0:00:02]} 3. Nc3 {[%emt 0:00:06]} c6 {[%emt 0:00:03]} 4. Bf4 {[%emt 0:00:07]} dxc4 {[%emt 0:00:09]} 5. a4 {[%emt 0:00:11]} Bb4 {[%emt 0:00:04]} 6. e3 {[%emt 0:00:06]} b5 {[%emt 0:00:07]} 7. axb5 {[%emt 0:00:06]} cxb5 {[%emt 0:00:04]} 8. Qf3 {[%emt 0:00:06]} Qd5 {[%emt 0:00:05]} 9. Qg3 {[%emt 0:00:06]} Qe4 {[%emt 0:24:20]} 10. Kd1 {[%emt 0:08:48]} Bxc3 {[%emt 0:08:48]} 11. bxc3 {[%emt 0:00:07]} b4 {[%emt 0:00:57]} 12. f3 {[%emt 0:13:16]} Qf5 {[%emt 0:01:06]} 13. e4 {[%emt 0:09:04]} Qb5 {[%emt 0:01:26]} (13... Qg6 $142 14. Bxb8 bxc3 15. Bxc4 Qxg3 16. Bxg3 a5) 14. Qxg7 {[%emt 0:00:26]} b3 {[%emt 0:04:59]} 15. Qxh8 $18 {[%emt 0:00:30]} b2 {[%emt 0:00:11]} 16. Qxg8+ {[%emt 0:00:06]} Ke7 {[%emt 0:00:22]} 17. Qg5+ {[%emt 0:00:14]} f6 {[%emt 0:00:31]} 18. Rxa7+ {[%emt 0:01:59]} Rxa7 {[%emt 0:00:08]} 19. Qxb5 1-0

[Event "Polish Youth Ekstraliga 2022"]
[Site "Lublin"]
[Date "2022.06.29"]
[Round "5.11"]
[White "Siekanska, Maria"]
[Black "Zabrzanska, Weronika"]
[Result "1-0"]
[ECO "D35"]
[WhiteElo "1964"]
[BlackElo "1882"]
[Annotator "TA"]
[PlyCount "133"]
[EventDate "2022.06.24"]
[EventType "team-tourn"]
[EventCountry "POL"]
[SourceTitle "playchess.com"]
[Source "ChessBase"]
[SourceQuality "1"]
[TimeControl "40/5400+30:1800+30"]

{[%evp 12,133,16,14,8,12,19,2,0,-12,-10,-8,0,-2,0,-4,0,-19,-11,-52,0,-2,0,0,0,-10,23,16,10,12,25,14,23,10,20,13,12,7,26,23,60,39,39,30,32,30,30,37,35,21,37,41,39,30,35,7,6,3,6,6,4,8,8,8,105,116,89,52,62,48,55,33,147,141,112,24,82,12,15,8,79,71,137,152,156,155,699,669,583,592,535,491,5392,2665,6079,2878,2088,1446,29976,29977,29980,29981,29985,29986,29988,29989,29989,29990,29990,29991,29991,29987,29987,29988,29988,29989,29989,29989,29996,29994,29997,29998,29998,29999]} 1. d4 {[%emt 0:00:01]} Nf6 {[%emt 0:00:05]} 2. c4 {[%emt 0:00:05]} e6 {[%emt 0:00:04]} 3. Nc3 {[%emt 0:00:05]} d5 {[%emt 0:00:07]} 4. cxd5 {[%emt 0:00:07]} exd5 {[%emt 0:00:33]} 5. Bg5 {[%emt 0:00:17]} c6 {[%emt 0:00:25]} 6. e3 {[%emt 0:00:15]} Bd6 {[%emt 0:00:16]} 7. Bd3 {[%emt 0:00:38]} h6 {[%emt 0:03:06] D35: Queen's Gambit Declined: Exchange Variation.} 8. Bh4 {[%emt 0:00:53]} O-O {[%emt 0:00:19] [#]} 9. f3 $146 {[%emt 0:04:25]} ({Predecessor:} 9. Nf3 Re8 10. O-O Nbd7 11. Re1 Be7 12. Qc2 Nf8 13. Ne5 N6d7 14. Bg3 Nxe5 15. Bxe5 {½-½ (28) Ganguly,S (2609)-Mareco,S (2652) Havana 2022}) 9... Re8 {[%emt 0:03:17] The position is equal.} 10. Bf2 {[%emt 0:01:44]} c5 {[%emt 0:03:01] [#] Strongly threatening ...cxd4.} 11. Nge2 {[%emt 0:03:20]} Nc6 {[%emt 0:08:19]} 12. O-O {[%emt 0:01:40]} cxd4 {[%emt 0:02:58]} 13. exd4 {[%emt 0:06:41]} Be6 {[%emt 0:06:16]} 14. a3 {[%emt 0:05:02]} Rc8 {[%emt 0:06:31]} 15. Bc2 {[%emt 0:02:37]} Ne7 {[%emt 0:03:12]} (15... Na5 $15) 16. Bh4 $11 {[%emt 0:10:51]} Nf5 {[%emt 0:11:05]} 17. Bxf5 {[%emt 0:09:12]} Bxf5 {[%emt 0:00:09]} 18. Qd2 {[%emt 0:01:57]} Bb8 {[%emt 0:09:00]} 19. Rfe1 {[%emt 0:02:41]} Qb6 {[%emt 0:21:31]} 20. Bg3 {[%emt 0:05:17]} Bxg3 {[%emt 0:01:14]} 21. Nxg3 {[%emt 0:00:12]} Bg6 {[%emt 0:00:24]} 22. Rxe8+ {[%emt 0:04:20]} Rxe8 {[%emt 0:00:09]} 23. Nge2 {[%emt 0:00:24]} Bf5 {[%emt 0:03:14]} 24. Nf4 {[%emt 0:01:10]} Qb3 {[%emt 0:01:01]} 25. Kf2 {[%emt 0:05:33]} Kf8 {[%emt 0:07:08]} 26. Rc1 {[%emt 0:02:40]} (26. g4 $5 {[%cal Rg4f5]} g5 27. Ng2 $14) 26... Kg8 {[%emt 0:02:32]} 27. Nd1 {[%emt 0:05:34]} Rc8 {[%emt 0:01:07]} 28. Ne3 {[%emt 0:01:11]} Rxc1 {[%emt 0:00:51]} 29. Qxc1 {[%emt 0:00:02]} Bd7 {[%emt 0:00:18]} 30. g4 {[%emt 0:02:48]} g5 {[%emt 0:01:12]} 31. Ne2 {[%emt 0:00:31]} Qb6 {[%emt 0:02:21]} 32. Qc3 {[%emt 0:02:49]} Qd6 {[%emt 0:00:44]} 33. Ng3 {[%emt 0:02:52]} h5 {[%emt 0:01:41]} 34. gxh5 {[%emt 0:00:52]} Nxh5 {[%emt 0:00:59]} 35. Qc5 {[%emt 0:00:36]} Qxc5 {[%emt 0:00:41]} 36. dxc5 {[%emt 0:00:02][%mdl 4096] Endgame KBN-KNN} Nf4 {[%emt 0:00:07]} 37. b4 {[%emt 0:02:27]} Bb5 {[%emt 0:01:12] Inhibits Ne2.} (37... a5 $11) 38. Ngf5 $16 {[%emt 0:00:27]} Kf8 {[%emt 0:00:53] Against Ne7} 39. Nd6 {[%emt 0:01:45]} Bc6 {[%emt 0:00:41]} 40. Nc2 {[%emt 0:00:00]} a6 {[%emt 0:00:00]} 41. Nd4 {[%emt 0:02:45]} Nd3+ {[%emt 0:02:42]} (41... Ke7 $14) 42. Kg3 {[%emt 0:04:12]} Ke7 {[%emt 0:01:29]} 43. Nb3 {[%emt 0:02:31]} (43. N6f5+ $16 Kf6 44. Nxc6 Kxf5 45. Na5) 43... Ne1 {[%emt 0:02:21]} (43... Ba4 $11 44. Na5 f6) 44. Na5 {[%emt 0:06:39]} (44. f4 $16) 44... Nc2 $11 {[%emt 0:02:49]} 45. Ndxb7 {[%emt 0:00:33]} Bb5 {[%emt 0:02:44]} (45... Bxb7 $11 46. Nxb7 d4) 46. Nd6 $16 {[%emt 0:05:04]} Nxa3 {[%emt 0:03:46]} (46... d4 $142) 47. Kg4 {[%emt 0:03:12]} f6 {[%emt 0:03:21] ...Bd7+ is the strong threat.} 48. Nxb5 {[%emt 0:05:00]} axb5 {[%emt 0:03:54] [#] KN-KN. This move loses the game for Black.} (48... Nxb5 $16 49. f4 d4) 49. Nc6+ $1 $18 {[%emt 0:02:52]} Kd7 {[%emt 0:01:11]} 50. Nd4 {[%emt 0:00:12] And now f4 would win.} Nc4 {[%emt 0:00:23]} 51. f4 {[%emt 0:04:23]} gxf4 {[%emt 0:01:14]} (51... Ne3+ $142 52. Kf3 Nf1 53. fxg5 Nxh2+ 54. Kf4 fxg5+ 55. Kxg5 Ke7) 52. Kxf4 {[%emt 0:00:09]} Ne5 {[%emt 0:00:09]} 53. Kf5 {[%emt 0:01:35] h4 would kill now.} Ke7 {[%emt 0:02:44]} 54. c6 {[%emt 0:01:45] Hoping for h4.} Nd3 {[%emt 0:08:11]} 55. h4 {[%emt 0:02:04][%cal Bh2h4,Bh4h5,Bh5h6][%mdl 32] White mates.} Nxb4 {[%emt 0:00:39]} 56. h5 {[%emt 0:00:18]} Nxc6 {[%emt 0:00:52]} 57. Nxc6+ {[%emt 0:00:05] KN-K3P} Kf7 {[%emt 0:00:05]} 58. h6 {[%emt 0:00:18]} d4 {[%emt 0:00:49]} 59. Nxd4 {[%emt 0:00:30] KN-KPP} b4 {[%emt 0:00:03]} 60. Nb3 {[%emt 0:01:12]} Kg8 {[%emt 0:00:27]} 61. Kxf6 {[%emt 0:01:10] KN-KP} Kh7 {[%emt 0:00:08]} 62. Kg5 {[%emt 0:00:04]} Kg8 {[%emt 0:00:36]} 63. Kg6 {[%emt 0:00:17]} Kh8 {[%emt 0:00:07]} 64. Nd4 {[%emt 0:00:19]} Kg8 {[%emt 0:00:19]} 65. h7+ {[%emt 0:00:36]} Kh8 {[%emt 0:00:08]} 66. Ne6 {[%emt 0:00:03]} b3 {[%emt 0:00:11]} 67. Ng5 {[%emt 0:00:04] Weighted Error Value: White=0.11 (very precise) /Black=0.35} 1-0

[Event "Polish Youth Ekstraliga 2022"]
[Site "Lublin"]
[Date "2022.06.29"]
[Round "5.12"]
[White "Polakiewicz, Blanka"]
[Black "Ziobrowska, Maja"]
[Result "0-1"]
[ECO "C68"]
[WhiteElo "1151"]
[BlackElo "1609"]
[Annotator "NA RC"]
[PlyCount "82"]
[EventDate "2022.06.24"]
[EventType "team-tourn"]
[EventCountry "POL"]
[SourceTitle "playchess.com"]
[Source "ChessBase"]
[SourceQuality "1"]
[TimeControl "40/5400+30:1800+30"]

1. e4 {[%emt 0:00:01]} e5 {[%emt 0:00:08]} 2. Nf3 {[%emt 0:00:08]} Nc6 {[%emt 0:00:05]} 3. Bb5 {[%emt 0:00:10]} a6 {[%emt 0:00:08]} 4. Bxc6 {[%emt 0:00:06]} dxc6 {[%emt 0:00:27]} 5. O-O {[%emt 0:00:08]} Bd6 {[%emt 0:00:49]} 6. d4 {[%emt 0:01:05]} Bg4 {[%emt 0:09:06]} 7. dxe5 {[%emt 0:02:56]} Bxf3 {[%emt 0:00:08]} 8. Qxf3 {[%emt 0:00:03]} Bxe5 {[%emt 0:00:07]} 9. Nc3 {[%emt 0:05:00]} Qf6 {[%emt 0:06:32]} 10. Qxf6 {[%emt 0:04:22]} Nxf6 {[%emt 0:00:06]} 11. Re1 {[%emt 0:04:09]} O-O-O {[%emt 0:04:23]} 12. Bg5 {[%emt 0:02:12]} Rhe8 {[%emt 0:01:11]} 13. f3 {[%emt 0:02:58]} Rd6 {[%emt 0:10:29]} 14. h3 {[%emt 0:06:42]} Bd4+ {[%emt 0:11:08]} 15. Kf1 {[%emt 0:01:55]} Nh5 {[%emt 0:06:51]} 16. g4 {[%emt 0:04:52]} h6 {[%emt 0:02:50]} 17. Bd2 {[%emt 0:08:53]} Be5 {[%emt 0:13:25]} 18. Be3 {[%emt 0:04:33]} Nf4 {[%emt 0:00:44]} 19. Bxf4 {[%emt 0:01:07]} Bxf4 {[%emt 0:00:05]} 20. Rad1 {[%emt 0:00:39]} Bd2 {[%emt 0:01:59]} 21. Re2 {[%emt 0:00:52]} Bxc3 {[%emt 0:00:04]} 22. Rxd6 {[%emt 0:00:19]} cxd6 {[%emt 0:00:05]} 23. bxc3 {[%emt 0:00:02]} Re5 {[%emt 0:00:10]} 24. Rd2 {[%emt 0:01:47]} Kc7 {[%emt 0:00:16]} 25. Ke2 {[%emt 0:02:23]} Ra5 {[%emt 0:00:18]} 26. Kd3 {[%emt 0:00:34]} Rxa2 {[%emt 0:00:24]} 27. Rd1 {[%emt 0:00:19]} a5 {[%emt 0:00:37]} 28. Rb1 {[%emt 0:00:17]} a4 {[%emt 0:00:09]} 29. Kd2 {[%emt 0:01:30]} b5 {[%emt 0:02:06]} 30. Kd3 {[%emt 0:00:55]} a3 {[%emt 0:00:42]} 31. Kd2 {[%emt 0:00:58]} Kb6 {[%emt 0:02:52]} 32. Kc1 {[%emt 0:01:54]} c5 {[%emt 0:02:40]} 33. h4 {[%emt 0:01:11]} Ka5 {[%emt 0:01:42]} 34. f4 {[%emt 0:02:00]} f6 {[%emt 0:04:24]} 35. Kd2 {[%emt 0:01:07]} Rb2 {[%emt 0:01:11]} 36. Ra1 {[%emt 0:01:05]} Ka4 {[%emt 0:00:37]} 37. Kc1 {[%emt 0:00:31]} b4 {[%emt 0:00:37]} 38. c4 {[%emt 0:01:15]} b3 {[%emt 0:00:29]} 39. cxb3+ {[%emt 0:00:25]} Kxb3 {[%emt 0:00:17]} 40. g5 {[%emt 0:00:00]} Rh2 {[%emt 0:00:00]} 41. Rb1+ {[%emt 0:01:11]} Kc3 {[%emt 0:00:45]} 0-1

[Event "Polish Youth Ekstraliga 2022"]
[Site "Lublin"]
[Date "2022.06.29"]
[Round "5.13"]
[White "Budzisz, Adrian"]
[Black "Kazmierowski, Tymon"]
[Result "1/2-1/2"]
[ECO "E06"]
[WhiteElo "2152"]
[BlackElo "2020"]
[Annotator "TA"]
[PlyCount "91"]
[EventDate "2022.06.24"]
[EventType "team-tourn"]
[EventCountry "POL"]
[SourceTitle "playchess.com"]
[Source "ChessBase"]
[SourceQuality "1"]
[TimeControl "40/5400+30:1800+30"]

{[%evp 19,91,29,44,20,20,19,14,-8,0,0,0,0,6,-6,-4,-13,-5,-8,-3,-10,0,-21,0,-10,0,0,0,0,0,0,0,0,5,8,8,6,8,0,0,0,0,-6,-1,-5,0,0,0,-9,-9,-9,-9,-13,-10,-10,-10,-23,-3,-3,-3,-3,-3,-3,0,0,0,-11,-3,-11,-11,-37,-37,-37,-37,-37]} 1. d4 {[%emt 0:00:06]} Nf6 {[%emt 0:00:08]} 2. c4 {[%emt 0:00:06]} e6 {[%emt 0:00:05]} 3. g3 {[%emt 0:00:09]} d5 {[%emt 0:01:04]} 4. Nf3 {[%emt 0:00:09]} Be7 {[%emt 0:00:41]} 5. Bg2 {[%emt 0:00:07]} O-O {[%emt 0:00:26]} 6. O-O {[%emt 0:00:05]} c6 {[%emt 0:06:14]} 7. Qc2 {[%emt 0:00:46]} b6 {[%emt 0:00:44]} 8. Rd1 {[%emt 0:00:30]} Bb7 {[%emt 0:01:52]} 9. b3 {[%emt 0:00:21]} Nbd7 {[%emt 0:00:31]} 10. Nc3 {[%emt 0:00:22]} Rc8 {[%emt 0:00:48]} 11. Bb2 {[%emt 0:03:08] E08: Closed Catalan: Main Line: 7 Qc2.} Qc7 {[%emt 0:01:52]} 12. Rac1 {[%emt 0:01:29]} Rfd8 {[%emt 0:00:50] [#]} 13. h4 $146 {[%emt 0:17:56] The position is equal.} ({Predecessor:} 13. e3 Qb8 14. Qe2 c5 15. cxd5 Nxd5 16. Nxd5 Bxd5 17. e4 Bb7 18. Rc2 cxd4 19. Nxd4 Nf6 20. Rxc8 Qxc8 21. a3 Qa8 22. f3 a5 23. Rd2 Bc5 {½-½ (54) Wojtaszek,R (2748)-Vitiugov,N (2732) Batumi 2019}) 13... h6 {[%emt 0:11:19]} 14. e3 {[%emt 0:07:29]} Qb8 {[%emt 0:04:19]} 15. Qb1 {[%emt 0:01:42]} Qa8 {[%emt 0:09:23]} 16. cxd5 {[%emt 0:03:21]} cxd5 {[%emt 0:00:46]} 17. Bf1 {[%emt 0:00:57]} Qb8 {[%emt 0:10:51]} 18. Bd3 {[%emt 0:04:25]} Bd6 {[%emt 0:04:34][%cal Od6g3] Threatens to win with ...Bxg3!} (18... Ng4 {is interesting.} 19. Ne2 Ndf6 20. Nh2 Nxh2 21. Kxh2 a6) 19. Ne2 {[%emt 0:06:27]} Rxc1 {[%emt 0:08:24]} (19... Ne4 {with more complications.} 20. Nf4 Ndf6 21. Ne5 Rxc1 22. Qxc1 Bxe5 23. dxe5 Ng4) 20. Rxc1 {[%emt 0:00:48]} Rc8 {[%emt 0:00:23]} (20... Ne4 $5 {[%cal Rd7f6]}) 21. a3 {[%emt 0:02:36]} Rxc1+ {[%emt 0:06:43]} 22. Qxc1 {[%emt 0:00:14]} Qc7 {[%emt 0:00:14]} 23. Qxc7 {[%emt 0:00:40]} Bxc7 {[%emt 0:00:02]} 24. b4 {[%emt 0:00:09]} Kf8 {[%emt 0:04:13]} 25. b5 {[%emt 0:03:57]} Ng4 {[%emt 0:02:10]} 26. Ne1 {[%emt 0:02:04]} e5 {[%emt 0:09:04]} 27. Bf5 {[%emt 0:03:24][%csl LRd7,LRg4]} Ngf6 {[%emt 0:00:27]} 28. Nd3 {[%emt 0:01:09][%cal Rd4e5]} e4 {[%emt 0:02:18] [#] aiming for ...g6.} 29. Nb4 {[%emt 0:02:46]} Bd6 {[%emt 0:02:15]} 30. Bc3 {[%emt 0:00:44]} Ke7 {[%emt 0:00:45]} 31. Kf1 {[%emt 0:02:18]} g6 {[%emt 0:01:23]} 32. Bh3 {[%emt 0:00:15]} Ne8 {[%emt 0:01:51]} 33. Ke1 {[%emt 0:04:54]} Nc7 {[%emt 0:00:44]} 34. a4 {[%emt 0:00:06]} a6 {[%emt 0:01:14]} 35. bxa6 {[%emt 0:00:24]} Nxa6 {[%emt 0:00:05]} 36. Nxa6 {[%emt 0:01:37]} Bxa6 {[%emt 0:00:02]} 37. Bf1 {[%emt 0:00:08]} g5 {[%emt 0:02:33]} 38. hxg5 {[%emt 0:00:42]} hxg5 {[%emt 0:00:01]} 39. Nc1 {[%emt 0:00:20]} Bxf1 {[%emt 0:00:16]} 40. Kxf1 $11 {[%emt 0:00:00][%mdl 4096] Endgame KBN-KBN} Nb8 {[%emt 0:00:00]} 41. Na2 {[%emt 0:00:10]} Nc6 {[%emt 0:03:33]} 42. Be1 {[%emt 0:01:04]} Ke6 {[%emt 0:00:40]} 43. Ke2 {[%emt 0:04:42]} f5 {[%emt 0:03:13]} 44. Kd1 {[%emt 0:01:29]} f4 {[%emt 0:01:01]} 45. gxf4 {[%emt 0:00:38]} gxf4 {[%emt 0:00:02]} 46. Bd2 {[%emt 0:02:54] Weighted Error Value: White=0.04 (flawless) /Black=0.04 (flawless)} 1/2-1/2

[Event "Polish Youth Ekstraliga 2022"]
[Site "Lublin"]
[Date "2022.06.29"]
[Round "5.14"]
[White "Grzadka, Artur"]
[Black "Backiel, Hubert"]
[Result "1-0"]
[ECO "A46"]
[WhiteElo "1718"]
[BlackElo "2045"]
[Annotator "TA"]
[PlyCount "79"]
[EventDate "2022.06.24"]
[EventType "team-tourn"]
[EventCountry "POL"]
[SourceTitle "playchess.com"]
[Source "ChessBase"]
[SourceQuality "1"]
[TimeControl "40/5400+30:1800+30"]

{[%evp 16,79,0,-6,0,0,0,0,0,-12,4,0,0,1,3,6,7,0,0,2,12,0,0,0,0,0,0,-4,6,0,0,-9,6,0,0,0,13,6,17,9,17,0,10,0,18,34,84,45,75,62,83,82,80,0,93,91,83,87,655,645,963,950,29985,29986,29986,6487]} 1. d4 {[%emt 0:00:04]} Nf6 {[%emt 0:00:09]} 2. Nf3 {[%emt 0:00:07]} e6 {[%emt 0:01:00]} 3. Bg5 {[%emt 0:00:06]} d5 {[%emt 0:02:39]} 4. e3 {[%emt 0:00:16]} Be7 {[%emt 0:00:38]} 5. Nbd2 {[%emt 0:01:34]} b6 {[%emt 0:03:12]} 6. Bd3 {[%emt 0:00:27]} Bb7 {[%emt 0:00:13]} 7. c3 {[%emt 0:01:13]} Nbd7 {[%emt 0:02:45]} 8. Qc2 {[%emt 0:07:33]} c5 {[%emt 0:05:39]} 9. O-O {[%emt 0:02:22]} Qc7 {[%emt 0:13:16] D03: 1 d4 d5 2 Nf3 Nf6 3 Bg5, including Torre Attack with early ...d5.} 10. Bf4 {[%emt 0:08:39]} Bd6 {[%emt 0:00:52]} 11. Bxd6 {[%emt 0:01:33]} Qxd6 {[%emt 0:00:12] The position is equal.} 12. e4 {[%emt 0:02:30] [#] Black must now prevent e5.} dxe4 {[%emt 0:07:51]} (12... cxd4 {is more complex.} 13. Nxd4 O-O 14. exd5 Qxd5 15. N2f3 Nc5) 13. Nxe4 {[%emt 0:04:49]} Nxe4 {[%emt 0:00:17]} 14. Bxe4 {[%emt 0:00:09]} Bxe4 {[%emt 0:00:08]} 15. Qxe4 {[%emt 0:00:18]} O-O {[%emt 0:00:16] [#]} 16. Rad1 $146 {[%emt 0:01:27]} ({Predecessor:} 16. Rfd1 Nf6 17. dxc5 Qxd1+ {0-1 (17) Adinolfi,V (2132)-Lucchi,V (2135) Cesenatico 2000}) 16... Rad8 {[%emt 0:15:13]} 17. Rd2 {[%emt 0:09:40]} Nf6 {[%emt 0:02:52]} 18. Qc2 {[%emt 0:01:34]} cxd4 {[%emt 0:08:32]} 19. Rxd4 {[%emt 0:04:13]} Qc5 {[%emt 0:07:46]} 20. Rfd1 {[%emt 0:12:14][%cal Bf1d1,Bd1d4,Bd4g4][%mdl 32]} Rxd4 {[%emt 0:00:36]} 21. Nxd4 {[%emt 0:01:29]} h6 {[%emt 0:02:50]} 22. h3 {[%emt 0:08:08]} b5 {[%emt 0:09:20]} 23. Qe2 {[%emt 0:07:44]} Rb8 {[%emt 0:01:48]} 24. Nb3 {[%emt 0:01:45]} Qc7 {[%emt 0:00:30]} 25. Rd4 {[%emt 0:05:27]} a5 {[%emt 0:01:06]} 26. Nd2 {[%emt 0:07:21]} Nd5 {[%emt 0:03:12]} 27. Nf3 {[%emt 0:02:58]} Qb7 {[%emt 0:06:32]} 28. Qe5 {[%emt 0:02:00]} Re8 {[%emt 0:01:02]} 29. Rg4 {[%emt 0:01:12][%csl Gg4][%cal Re5g7] [#]} f5 {[%emt 0:02:24]} 30. Rd4 {[%emt 0:01:08]} Kf7 {[%emt 0:01:00]} (30... Qb8 $14) 31. Qg3 {[%emt 0:02:47]} g5 {[%emt 0:01:01]} 32. Qd6 {[%emt 0:00:41]} Kf6 {[%emt 0:00:47]} 33. Qe5+ {[%emt 0:01:17]} Kf7 {[%emt 0:00:08]} 34. Qd6 {[%emt 0:01:03]} Kf6 $1 {[%emt 0:00:06]} 35. h4 {[%emt 0:00:19]} g4 {[%emt 0:01:27]} 36. Ne5 {[%emt 0:00:23][%cal Bf3e5,Be5c6,Bc6d8][%mdl 32]} Re7 $2 {[%emt 0:00:37][%mdl 8192] A mistake that costs the game.} (36... Qe7 $16 37. Nxg4+ fxg4 38. Rxd5 Qxd6 39. Rxd6 Rc8) 37. Nc6 $18 {[%emt 0:01:06]} Re8 {[%emt 0:00:30]} 38. Rxd5 {[%emt 0:00:12]} Rc8 {[%emt 0:00:21]} 39. Qe5+ {[%emt 0:00:27]} Kf7 {[%emt 0:00:14]} 40. Nd8+ {[%emt 0:00:00] Weighted Error Value: White=0.08 (flawless) /Black=0.56} 1-0

[Event "Polish Youth Ekstraliga 2022"]
[Site "Lublin"]
[Date "2022.06.29"]
[Round "5.15"]
[White "Ptaszynski, Szymon"]
[Black "Przybylski, Jan"]
[Result "1-0"]
[ECO "B40"]
[WhiteElo "1781"]
[BlackElo "1694"]
[Annotator "NA RC"]
[PlyCount "89"]
[EventDate "2022.06.24"]
[EventType "team-tourn"]
[EventCountry "POL"]
[SourceTitle "playchess.com"]
[Source "ChessBase"]
[SourceQuality "1"]
[TimeControl "40/5400+30:1800+30"]

1. e4 {[%emt 0:00:30]} c5 {[%emt 0:00:05]} 2. Nf3 {[%emt 0:00:03]} e6 {[%emt 0:00:19]} 3. c3 {[%emt 0:00:04]} d5 {[%emt 0:00:27]} 4. exd5 {[%emt 0:00:05]} exd5 {[%emt 0:00:31]} 5. d4 {[%emt 0:00:06]} Nc6 {[%emt 0:00:45]} 6. Bb5 {[%emt 0:13:49]} Bd6 {[%emt 0:07:46]} 7. O-O {[%emt 0:00:31]} Nge7 {[%emt 0:00:55]} 8. dxc5 {[%emt 0:04:25]} Bxc5 {[%emt 0:00:34]} 9. Nbd2 {[%emt 0:00:17]} O-O {[%emt 0:01:30]} 10. Nb3 {[%emt 0:00:06]} Bb6 {[%emt 0:01:40]} 11. Bd3 {[%emt 0:01:30]} Ng6 {[%emt 0:14:44]} 12. h3 {[%emt 0:05:25]} Qd6 {[%emt 0:05:00]} 13. Be3 {[%emt 0:27:30]} Bxe3 {[%emt 0:04:09]} 14. fxe3 {[%emt 0:00:32]} Re8 {[%emt 0:16:50]} 15. Qd2 {[%emt 0:11:42]} Nge5 {[%emt 0:14:35]} 16. Nxe5 {[%emt 0:10:08]} Qxe5 {[%emt 0:01:32]} 17. Rae1 {[%emt 0:00:39]} Be6 {[%emt 0:03:15]} 18. Nd4 {[%emt 0:01:02]} Qg5 {[%emt 0:10:09]} 19. Nf3 {[%emt 0:01:02]} Qg3 {[%emt 0:01:01]} 20. Qf2 {[%emt 0:00:34]} Qxf2+ {[%emt 0:02:38]} 21. Rxf2 {[%emt 0:00:30]} f6 {[%emt 0:01:30]} 22. Rd2 {[%emt 0:00:47]} Rad8 {[%emt 0:01:16]} 23. Kf2 {[%emt 0:00:51]} Bf7 {[%emt 0:03:43]} 24. Bb5 {[%emt 0:05:13]} a6 {[%emt 0:01:23]} 25. Ba4 {[%emt 0:00:49]} Bg6 {[%emt 0:01:36]} 26. Bb3 {[%emt 0:00:48]} Bf7 {[%emt 0:00:57]} 27. Red1 {[%emt 0:00:07]} Ne7 {[%emt 0:03:22]} 28. e4 {[%emt 0:00:42]} Rd6 {[%emt 0:00:25]} 29. exd5 {[%emt 0:00:10]} Red8 {[%emt 0:00:05]} 30. c4 {[%emt 0:00:05]} b5 {[%emt 0:00:25]} 31. c5 {[%emt 0:01:43]} R6d7 {[%emt 0:00:01]} 32. d6 {[%emt 0:00:26]} Nc6 {[%emt 0:00:32]} 33. Bxf7+ {[%emt 0:01:23]} Kxf7 {[%emt 0:00:07]} 34. Nd4 {[%emt 0:00:14]} Rc8 {[%emt 0:00:29]} 35. Nxc6 {[%emt 0:00:28]} Rxc6 {[%emt 0:00:01]} 36. b4 {[%emt 0:00:05]} a5 {[%emt 0:00:30]} 37. a3 {[%emt 0:00:04]} Ke8 {[%emt 0:00:27]} 38. Re2+ {[%emt 0:00:08]} Kd8 {[%emt 0:00:05]} 39. Rde1 {[%emt 0:00:03]} Kc8 {[%emt 0:00:22]} 40. Re8+ {[%emt 0:00:00]} Rd8 {[%emt 0:00:00]} 41. Rxd8+ {[%emt 0:00:46]} Kxd8 {[%emt 0:00:17]} 42. Re7 {[%emt 0:00:15]} axb4 {[%emt 0:00:05]} 43. axb4 {[%emt 0:00:02]} Ra6 {[%emt 0:00:10]} 44. Rxg7 {[%emt 0:00:21]} Ra2+ {[%emt 0:00:22]} 45. Kg3 {[%emt 0:00:07]} 1-0